bitfinex-derivatives/quotes_BTCF0:USTF0_20250325
["timestamp","ask_amount","ask_price","bid_price","bid_amount"]
[1742898877051,0.17825981,87128.0,87127.0,0.2076195]
[1742898877646,0.17825981,87128.0,87127.0,0.0928583]
[1742898877844,0.17825981,87128.0,87127.0,0.2076195]
[1742898879043,0.17825981,87128.0,87127.0,0.23191956]
[1742898879753,0.17825981,87128.0,87127.0,0.11715836]
[1742898880446,0.53905981,87128.0,87127.0,0.11715836]
[1742898881046,0.53905981,87128.0,87127.0,0.0928583]
[1742898881254,0.53905981,87128.0,87127.0,0.0279583]
[1742898881458,0.53905981,87128.0,87127.0,0.1427195]
[1742898881753,0.53905981,87128.0,87127.0,0.1748195]
[1742898881948,0.53905981,87128.0,87127.0,0.2065195]
[1742898882440,0.53905981,87128.0,87127.0,0.0917583]
[1742898882643,0.53905981,87128.0,87127.0,0.08433958]
[1742898883044,0.53905981,87128.0,87127.0,0.11603958]
[1742898883353,0.53905981,87128.0,87127.0,0.0917583]
[1742898883950,0.53905981,87128.0,87127.0,0.2065195]
[1742898884452,0.53905981,87128.0,87127.0,0.0917583]
[1742898884654,0.53905981,87128.0,87127.0,0.2065195]
[1742898885342,0.53905981,87128.0,87127.0,0.23077917]
[1742898886254,0.53905981,87128.0,87127.0,0.47077917]
[1742898886454,0.53905981,87128.0,87127.0,0.23077917]
[1742898887159,0.53905981,87128.0,87127.0,0.0917583]
[1742898887341,0.53905981,87128.0,87127.0,0.2065195]
[1742898889157,0.53905981,87128.0,87127.0,0.0917583]
[1742898889454,0.53905981,87128.0,87127.0,0.2065195]
[1742898889645,0.53905981,87128.0,87127.0,0.0917583]
[1742898889846,0.53905981,87128.0,87127.0,0.2065195]
[1742898890454,0.53905981,87128.0,87127.0,0.0917583]
[1742898890646,0.53905981,87128.0,87127.0,0.0907183]
[1742898890846,0.53905981,87128.0,87127.0,0.2065595]
[1742898891256,0.53905981,87128.0,87127.0,0.0917983]
[1742898891658,0.53905981,87128.0,87127.0,0.0907183]
[1742898891855,0.53905981,87128.0,87127.0,0.0917983]
[1742898892352,0.53905981,87128.0,87127.0,0.0279983]
[1742898892553,0.53905981,87128.0,87127.0,0.0151806]
[1742898892756,0.1147704,87120.0,87119.0,0.0001722]
[1742898892950,0.5869304,87120.0,87119.0,0.0001722]
[1742898893260,0.1147796,87113.0,87105.0,0.0608]
[1742898893457,0.47661961,87113.0,87112.0,0.40884]
[1742898893859,0.53731961,87113.0,87112.0,0.40884]
[1742898895045,0.53731961,87113.0,87112.0,0.00104]
[1742898895961,0.53731961,87113.0,87112.0,0.00204]
[1742898896464,0.53831961,87113.0,87112.0,0.00204]
[1742898897361,0.53831961,87113.0,87112.0,0.00104]
[1742898897561,0.53931961,87113.0,87112.0,0.00104]
[1742898899258,0.1147901,87105.0,87104.0,0.0001722]
[1742898899458,0.5863101,87105.0,87104.0,0.0001722]
[1742898899653,0.6482101,87105.0,87104.0,0.0012922]
[1742898899853,0.1148086,87091.0,87090.0,0.0655]
[1742898900058,0.47620861,87091.0,87090.0,0.0326]
[1742898900260,0.47620861,87091.0,87087.0,0.03325931]
[1742898900261,0.1148126,87088.0,87087.0,0.03325931]
[1742898900560,0.1155326,87088.0,87087.0,0.03401931]
[1742898900755,0.1762326,87088.0,87087.0,0.03401931]
[1742898901962,0.1762326,87088.0,87087.0,0.04547385]
[1742898902169,0.1762326,87088.0,87087.0,0.04647385]
[1742898902457,0.1772326,87088.0,87087.0,0.04647385]
[1742898902651,0.1772326,87088.0,87087.0,0.31647385]
[1742898902856,0.1772326,87088.0,87087.0,0.04647385]
[1742898903261,0.1772326,87088.0,87087.0,0.28647385]
[1742898903459,0.1772326,87088.0,87087.0,0.04647385]
[1742898903667,0.1772326,87088.0,87087.0,0.29647385]
[1742898903859,0.1772326,87088.0,87087.0,0.04647385]
[1742898904460,0.5380326,87088.0,87087.0,0.04647385]
[1742898904664,0.5380326,87088.0,87087.0,0.28647385]
[1742898904865,0.5380326,87088.0,87087.0,0.06147616]
[1742898905258,0.5380326,87088.0,87087.0,0.31147616]
[1742898905568,0.5380326,87088.0,87087.0,0.06147616]
[1742898905765,0.5380326,87088.0,87087.0,0.06071616]
[1742898906064,0.36252,87088.0,87087.0,0.43553006]
[1742898906255,0.3608,87098.0,87095.0,0.1722017]
[1742898906455,0.00072,87098.0,87097.0,0.1148007]
[1742898906657,0.00072,87098.0,87097.0,0.6693207]
[1742898907159,0.1155194,87098.0,87097.0,0.6693207]
[1742898907470,0.1155194,87098.0,87097.0,0.68432301]
[1742898907967,0.1155194,87098.0,87097.0,0.45532301]
[1742898910064,0.00072,87098.0,87097.0,0.64532301]
[1742898910671,0.1155194,87098.0,87097.0,0.66154466]
[1742898911353,0.1155194,87098.0,87097.0,0.66154473]
[1742898911960,0.00072,87098.0,87097.0,0.66154473]
[1742898913269,0.00072,87098.0,87097.0,0.66166838]
[1742898913473,0.1155194,87098.0,87097.0,0.66166838]
[1742898914566,0.00072,87098.0,87097.0,0.66166838]
[1742898917564,0.00072,87098.0,87097.0,0.64532301]
[1742898917765,0.00072,87098.0,87097.0,0.66145753]
[1742898917965,0.00072,87098.0,87097.0,0.661411]
[1742898918365,0.00072,87098.0,87097.0,0.691411]
[1742898918767,0.00072,87098.0,87097.0,0.501411]
[1742898919869,0.03142,87098.0,87097.0,0.501411]
[1742898920577,0.0307,87098.0,87097.0,0.501411]
[1742898920766,0.0315,87098.0,87097.0,0.501411]
[1742898920968,0.0008,87098.0,87097.0,0.741411]
[1742898921173,8e-05,87100.0,87099.0,0.1147981]
[1742898921370,0.00084,87100.0,87099.0,0.7164884]
[1742898921572,0.00084,87100.0,87099.0,0.4372084]
[1742898921875,0.1156367,87100.0,87099.0,0.4372084]
[1742898922270,0.1156367,87100.0,87099.0,0.43734778]
[1742898923173,0.1156367,87100.0,87099.0,0.43834778]
[1742898923477,0.00084,87100.0,87099.0,0.43836372]
[1742898923670,0.00084,87100.0,87099.0,0.68936372]
[1742898923871,0.1156367,87100.0,87099.0,0.43936372]
[1742898924073,0.1156367,87100.0,87099.0,0.69936372]
[1742898924276,0.1156367,87100.0,87099.0,0.43936496]
[1742898924878,0.1465367,87100.0,87099.0,0.43936496]
[1742898925075,0.03174,87100.0,87099.0,0.43936496]
[1742898925272,0.1465367,87100.0,87099.0,0.43936496]
[1742898925969,0.03174,87100.0,87099.0,0.43936496]
[1742898926676,0.1465367,87100.0,87099.0,0.43936496]
[1742898926871,0.1457767,87100.0,87099.0,0.43936496]
[1742898928068,0.03178,87100.0,87099.0,0.43936496]
[1742898928270,0.03098,87100.0,87099.0,1.06016496]
[1742898928578,0.0303,87104.0,87099.0,1.06016496]
[1742898928579,0.11072,87114.0,87112.0,0.1147809]
[1742898928766,0.0008922,87113.0,87112.0,0.54178545]
[1742898928971,0.0001722,87113.0,87112.0,0.54178545]
[1742898929174,0.0001722,87113.0,87112.0,0.58788776]
[1742898929981,0.0304722,87113.0,87112.0,0.61858776]
[1742898930177,0.0312722,87113.0,87112.0,0.61867095]
[1742898930378,0.0332722,87113.0,87112.0,0.61867095]
[1742898930579,0.0324722,87113.0,87112.0,0.61867095]
[1742898930778,0.0324722,87113.0,87112.0,0.61866803]
[1742898931084,0.0324722,87113.0,87112.0,0.64477155]
[1742898931380,0.0334722,87113.0,87112.0,0.64477155]
[1742898931681,0.0334722,87113.0,87112.0,0.65634428]
[1742898933576,0.0031722,87113.0,87112.0,0.65634428]
[1742898936177,0.0031722,87113.0,87112.0,0.65650591]
[1742898942691,0.0031722,87113.0,87112.0,0.65620899]
[1742898945487,0.0031722,87113.0,87112.0,0.86263911]
[1742898946191,0.0031722,87113.0,87112.0,0.86256928]
[1742898947690,0.0338722,87113.0,87112.0,0.86256928]
[1742898948194,0.0338722,87113.0,87112.0,0.83631341]
[1742898949396,0.0338722,87113.0,87112.0,0.62988329]
[1742898953692,0.0338722,87113.0,87112.0,0.45988329]
[1742898954291,0.0643722,87113.0,87112.0,0.48525728]
[1742898954482,0.0643722,87113.0,87112.0,0.72525728]
[1742898954682,0.0643722,87113.0,87112.0,0.48525728]
[1742898955192,0.0643722,87113.0,87112.0,0.75525728]
[1742898955594,0.0643722,87113.0,87112.0,0.48525728]
[1742898955793,0.0643722,87113.0,87112.0,0.75525728]
[1742898956199,0.0643722,87113.0,87112.0,0.75530883]
[1742898956394,0.0643722,87113.0,87112.0,0.48530883]
[1742898956597,0.1791518,87113.0,87112.0,0.45460883]
[1742898956991,0.0643722,87113.0,87112.0,0.45460883]
[1742898957190,0.06497221,87113.0,87112.0,0.45460883]
[1742898957399,0.0643722,87113.0,87112.0,0.45460883]
[1742898957600,0.1791518,87113.0,87112.0,0.45460883]
[1742898957796,0.1799518,87113.0,87112.0,0.45460883]
[1742898957999,0.0651722,87113.0,87112.0,0.45460883]
[1742898958195,0.1791518,87113.0,87112.0,0.45460883]
[1742898958400,0.1799118,87113.0,87112.0,0.45460883]
[1742898958898,0.1799118,87113.0,87112.0,0.30872793]
[1742898959104,0.1799118,87113.0,87112.0,0.27168265]
[1742898959291,0.1799118,87113.0,87112.0,0.01576231]
[1742898959489,0.1799118,87113.0,87102.0,0.1147934]
[1742898959490,0.1147888,87106.0,87103.0,0.1147925]
[1742898959687,0.4762688,87106.0,87105.0,0.00068]
[1742898959893,0.5088688,87106.0,87105.0,0.00068]
[1742898960092,0.5088688,87106.0,87105.0,0.01674045]
[1742898961104,0.5088688,87106.0,87105.0,0.00068]
[1742898962601,0.5397688,87106.0,87105.0,0.00068]
[1742898962807,0.5397688,87106.0,87104.0,0.01185505]
[1742898962808,0.1147901,87105.0,87104.0,0.01185505]
[1742898962997,0.12720452,87105.0,87104.0,0.01185505]
[1742898963296,0.18980452,87105.0,87104.0,0.01185505]
[1742898963809,0.1780701,87105.0,87104.0,0.27245505]
[1742898964009,0.1780701,87105.0,87104.0,0.12724655]
[1742898964202,0.1780701,87105.0,87104.0,0.12824655]
[1742898964506,0.1780701,87105.0,87104.0,0.01345505]
[1742898964695,0.1780701,87105.0,87104.0,0.29345505]
[1742898964898,0.1780701,87105.0,87104.0,0.12824655]
[1742898965198,0.1780701,87105.0,87104.0,0.01345505]
[1742898965608,0.1780701,87105.0,87104.0,0.01285505]
[1742898966000,0.1780701,87105.0,87104.0,0.12824655]
[1742898969399,0.1780701,87105.0,87104.0,0.15904655]
[1742898970905,0.5388701,87105.0,87104.0,0.15904655]
[1742898971312,0.5388701,87105.0,87104.0,0.19004655]
[1742898971812,0.5388701,87105.0,87104.0,0.20478292]
[1742898972112,0.5388701,87105.0,87104.0,0.47478292]
[1742898972410,0.5388701,87105.0,87104.0,0.20478292]
[1742898972806,0.5388701,87105.0,87104.0,0.08999142]
[1742898973010,0.5388701,87105.0,87104.0,0.10613405]
[1742898974110,0.5388701,87105.0,87104.0,0.22092555]
[1742898974613,0.5388701,87105.0,87104.0,0.46092555]
[1742898974918,0.5388701,87105.0,87104.0,0.10613405]
[1742898975508,0.5388701,87105.0,87104.0,0.22092555]
[1742898975707,0.5388701,87105.0,87104.0,0.22091713]
[1742898976106,0.5388701,87105.0,87104.0,0.20478292]
[1742898976314,0.1780701,87105.0,87104.0,0.20478292]
[1742898976516,0.5388701,87105.0,87104.0,0.22092501]
[1742898976904,0.5388701,87105.0,87104.0,0.10613351]
[1742898977311,0.5388701,87105.0,87104.0,0.08999142]
[1742898977810,0.5388701,87105.0,87104.0,0.08939142]
[1742898978112,0.5388701,87105.0,87104.0,0.09007142]
[1742898978510,0.5388701,87105.0,87104.0,0.22093326]
[1742898978719,0.5388701,87105.0,87104.0,0.10614176]
[1742898979113,0.5388701,87105.0,87104.0,0.08939142]
[1742898979517,0.5388701,87105.0,87104.0,0.09011142]
[1742898980114,0.5388701,87105.0,87104.0,0.20490292]
[1742898982617,0.5388701,87105.0,87104.0,0.09011142]
[1742898983603,0.5388701,87105.0,87104.0,0.0018922]
[1742898983803,0.1722031,87096.0,87095.0,0.0306]
[1742898984111,0.64456311,87096.0,87095.0,0.0312]
[1742898985321,0.64456311,87096.0,87095.0,0.0322]
[1742898987617,0.36168001,87096.0,87095.0,0.2822]
[1742898987817,0.0573907,87112.0,87104.0,0.1147915]
[1742898988018,0.36144,87105.0,87104.0,0.3447915]
[1742898988220,0.4762301,87105.0,87104.0,1.8454315]
[1742898988415,0.4755901,87105.0,87104.0,1.92457602]
[1742898988720,0.3608,87105.0,87104.0,0.42457602]
[1742898989020,0.4762301,87105.0,87104.0,0.43925748]
[1742898989814,0.4762301,87105.0,87104.0,0.4394118]
[1742898990121,0.4762301,87105.0,87104.0,0.71473034]
[1742898991216,0.3608,87116.0,87112.0,0.1147809]
[1742898991414,0.3608,87116.0,87112.0,0.59057974]
[1742898991614,0.0008922,87113.0,87112.0,0.42600318]
[1742898991815,0.1156728,87113.0,87112.0,0.42601664]
[1742898992015,0.1156728,87113.0,87112.0,0.20911664]
[1742898992218,0.1773728,87113.0,87112.0,0.20911664]
[1742898992616,0.1773728,87113.0,87112.0,0.09433574]
[1742898992812,0.1773728,87113.0,87112.0,0.22031549]
[1742898993013,0.1793728,87113.0,87112.0,0.22031549]
[1742898993222,0.1793728,87113.0,87112.0,0.20561205]
[1742898993524,0.1803728,87113.0,87112.0,0.20561205]
[1742898993919,0.1803728,87113.0,87112.0,0.20536333]
[1742898994819,0.1803728,87113.0,87112.0,0.06382]
[1742898996514,0.1147862,87108.0,87107.0,0.20642394]
[1742898996822,0.1147862,87108.0,87107.0,0.20702394]
[1742898996823,0.4762662,87108.0,87107.0,0.20702394]
[1742898997020,0.1147981,87099.0,87098.0,0.20642394]
[1742898997227,0.4764381,87099.0,87098.0,0.20702394]
[1742898997521,0.5729381,87099.0,87098.0,0.20702394]
[1742898999030,0.5729381,87099.0,87098.0,0.20802394]
[1742898999832,0.5399381,87099.0,87098.0,0.0016]
[1742899000023,0.5399381,87099.0,87098.0,0.0334]
[1742899000220,0.5399381,87099.0,87098.0,0.0641]
[1742899002533,0.5399381,87099.0,87098.0,0.0635]
[1742899003434,0.5399381,87099.0,87098.0,0.001]
[1742899004422,0.55148526,87099.0,87098.0,0.001]
[1742899005433,0.55148526,87099.0,87098.0,0.0016]
[1742899006431,0.19068526,87099.0,87098.0,0.0016]
[1742899006637,0.55148526,87099.0,87098.0,0.0016]
[1742899007631,0.5399381,87099.0,87098.0,0.0016]
[1742899007834,0.5399381,87099.0,87098.0,0.001]
[1742899009231,0.5399381,87099.0,87098.0,0.0016]
[1742899011337,0.5399381,87099.0,87098.0,0.0334]
[1742899012732,0.5399381,87099.0,87098.0,0.03404]
[1742899013237,0.4764381,87099.0,87098.0,0.03404]
[1742899013437,0.4764381,87099.0,87098.0,0.27404]
[1742899013740,0.4764381,87099.0,87098.0,0.30544]
[1742899013931,0.4764381,87099.0,87098.0,0.6602394]
[1742899014127,0.4764381,87099.0,87098.0,0.4202394]
[1742899014333,8e-05,87100.0,87099.0,0.1147981]
[1742899014537,0.3109,87106.0,87105.0,0.1147901]
[1742899014834,0.4755775,87115.0,87112.0,0.1147809]
[1742899015041,0.00077221,87113.0,87112.0,0.57130819]
[1742899015346,0.11555181,87113.0,87112.0,1.97340819]
[1742899015636,0.1149518,87113.0,87112.0,1.98814504]
[1742899015834,0.1149518,87113.0,87112.0,0.48814504]
[1742899016135,0.11555181,87113.0,87112.0,0.47221775]
[1742899016530,0.1159518,87113.0,87112.0,0.4574809]
[1742899016731,0.11655181,87113.0,87112.0,0.4574809]
[1742899017741,0.11655181,87113.0,87112.0,0.4876809]
[1742899017940,0.11855181,87113.0,87112.0,0.4876809]
[1742899018641,0.11855181,87113.0,87112.0,0.3953809]
[1742899018949,0.11855181,87113.0,87103.0,0.4078]
[1742899018950,0.1147915,87104.0,87103.0,0.4078]
[1742899019241,0.5870315,87104.0,87103.0,0.4084]
[1742899019434,0.6506315,87104.0,87103.0,0.4084]
[1742899019830,0.6506315,87104.0,87103.0,0.42313152]
[1742899020840,0.6506315,87104.0,87103.0,0.01533152]
[1742899021046,0.1147941,87102.0,87101.0,0.02102464]
[1742899021246,0.1157141,87102.0,87101.0,4e-08]
[1742899021447,0.1796141,87102.0,87101.0,0.0006]
[1742899022144,0.114806,87093.0,87092.0,0.0611]
[1742899022353,0.1148126,87088.0,87081.0,0.0302]
[1742899022547,0.1161726,87088.0,87081.0,0.0302]
[1742899022740,0.1161726,87088.0,87084.0,0.1148173]
[1742899022939,0.1161726,87088.0,87082.0,0.0574099]
[1742899023143,0.1161726,87088.0,87085.0,0.1148153]
[1742899023438,0.1161726,87088.0,87087.0,0.00121451]
[1742899023835,0.1161726,87088.0,87087.0,0.01290149]
[1742899024040,0.1161726,87088.0,87087.0,0.01390149]
[1742899024241,0.1161726,87088.0,87087.0,0.01326149]
[1742899024446,0.1161726,87088.0,87087.0,0.00157451]
[1742899028148,0.4769726,87088.0,87087.0,0.00157451]
[1742899031045,0.4769726,87088.0,87087.0,0.00221451]
[1742899031348,0.4769726,87088.0,87087.0,0.00157451]
[1742899032451,0.4769726,87088.0,87087.0,0.00285451]
[1742899033648,0.5397726,87088.0,87087.0,0.00285451]
[1742899035543,0.5397726,87088.0,87087.0,0.06715451]
[1742899037652,0.1789726,87088.0,87087.0,0.06715451]
[1742899037856,0.5397726,87088.0,87087.0,0.06715451]
[1742899038956,0.5397726,87088.0,87087.0,0.06587451]
[1742899039357,0.5397726,87088.0,87087.0,0.06651451]
[1742899040066,0.5397726,87088.0,87087.0,0.00221451]
[1742899040255,0.5397726,87088.0,87087.0,0.00157451]
[1742899041964,0.5397726,87088.0,87087.0,0.00221451]
[1742899042170,0.5397726,87088.0,87087.0,0.00157451]
[1742899042361,0.1789726,87088.0,87087.0,0.00157451]
[1742899042561,0.5397726,87088.0,87087.0,0.00285451]
[1742899042863,0.5397726,87088.0,87087.0,0.00157451]
[1742899043065,0.5397726,87088.0,87087.0,0.00217451]
[1742899043656,0.5397726,87088.0,87087.0,0.03357451]
[1742899045357,0.1789726,87088.0,87087.0,0.03357451]
[1742899045761,0.5397726,87088.0,87087.0,0.03357451]
[1742899049059,0.5397726,87088.0,87087.0,0.03297451]
[1742899049371,0.5397726,87088.0,87087.0,0.04933494]
[1742899049963,0.5397726,87088.0,87087.0,0.04873494]
[1742899050468,0.5397726,87088.0,87087.0,0.04933494]
[1742899050768,0.3608,87094.0,87093.0,0.114806]
[1742899050958,0.4765246,87094.0,87093.0,0.13120643]
[1742899051161,0.4765246,87094.0,87093.0,0.22870643]
[1742899051863,0.4765246,87094.0,87093.0,0.22970643]
[1742899052171,0.4765246,87094.0,87093.0,0.52138201]
[1742899052467,0.0117352,87108.0,87093.0,0.52138201]
[1742899052468,0.3609722,87113.0,87102.0,0.1147941]
[1742899052670,0.3609722,87113.0,87112.0,0.1147809]
[1742899052970,0.3609722,87113.0,87112.0,0.13118133]
[1742899052971,0.3616122,87113.0,87112.0,0.13118133]
[1742899053271,0.3616122,87113.0,87112.0,0.69598133]
[1742899053466,0.3616122,87113.0,87112.0,0.43598133]
[1742899053670,0.3616122,87113.0,87112.0,0.19598133]
[1742899054168,0.00064,87113.0,87112.0,0.71598133]
[1742899054366,8e-05,87114.0,87113.0,0.1147796]
[1742899054562,8e-05,87114.0,87113.0,0.45324003]
[1742899055074,0.1147783,87114.0,87113.0,0.19323893]
[1742899055263,0.1154183,87114.0,87113.0,0.19323893]
[1742899055770,0.1184183,87114.0,87113.0,0.19323893]
[1742899056271,0.1843183,87114.0,87113.0,0.19323893]
[1742899056970,0.1520183,87114.0,87113.0,0.19332904]
[1742899057470,0.1520183,87114.0,87113.0,0.22492904]
[1742899057772,0.1204183,87114.0,87113.0,0.22492904]
[1742899057962,0.1204183,87114.0,87113.0,0.48497708]
[1742899058271,0.1204183,87114.0,87113.0,0.22497708]
[1742899058470,0.1204183,87114.0,87113.0,0.2090785]
[1742899059468,0.1533183,87114.0,87113.0,0.2090785]
[1742899061869,0.1533183,87114.0,87113.0,0.22368541]
[1742899062171,0.1533183,87114.0,87113.0,0.19208541]
[1742899062474,0.1842183,87114.0,87113.0,0.19208541]
[1742899062875,0.1842183,87114.0,87113.0,0.1774785]
[1742899064175,0.1842183,87114.0,87113.0,0.19208226]
[1742899064963,0.1842183,87114.0,87113.0,0.1774785]
[1742899066878,0.2160183,87114.0,87113.0,0.1774785]
[1742899069382,0.2160183,87114.0,87113.0,0.4374785]
[1742899069683,0.2160183,87114.0,87113.0,0.4474785]
[1742899069870,0.2160183,87114.0,87113.0,0.1774785]
[1742899070065,0.2160183,87114.0,87113.0,0.4674785]
[1742899070266,0.2160183,87114.0,87113.0,0.4574785]
[1742899070470,0.00564,87114.0,87113.0,0.7074785]
[1742899070668,0.00564,87114.0,87113.0,1.0682785]
[1742899070873,0.005,87114.0,87113.0,1.0682785]
[1742899071074,0.005,87114.0,87113.0,0.8082785]
[1742899071271,0.005,87114.0,87113.0,2.3082785]
[1742899071674,0.005,87114.0,87113.0,2.32299519]
[1742899071875,0.005,87114.0,87113.0,1.96219519]
[1742899072080,0.1837783,87114.0,87113.0,1.96219519]
[1742899072274,0.1844183,87114.0,87113.0,1.96219519]
[1742899072580,0.06964,87114.0,87113.0,1.96219519]
[1742899072777,0.069,87114.0,87113.0,1.96219519]
[1742899072977,0.1844183,87114.0,87113.0,1.96219519]
[1742899073681,0.069,87114.0,87113.0,1.96219519]
[1742899073879,0.069,87114.0,87113.0,0.46219519]
[1742899074083,0.06960001,87114.0,87113.0,0.46219519]
[1742899074275,0.18437831,87114.0,87113.0,0.46219519]
[1742899075387,0.18437831,87114.0,87113.0,0.42219519]
[1742899075787,0.1837783,87114.0,87113.0,0.42219519]
[1742899076088,0.1837783,87114.0,87113.0,0.19219519]
[1742899076291,0.1844583,87114.0,87113.0,0.19219519]
[1742899077376,0.1844583,87114.0,87113.0,0.20826323]
[1742899077580,0.1844583,87114.0,87113.0,0.19219519]
[1742899078685,0.1844583,87114.0,87113.0,0.20823371]
[1742899079481,0.1844583,87114.0,87113.0,0.19351702]
[1742899079678,0.1844583,87114.0,87113.0,0.13141702]
[1742899080489,0.1844583,87114.0,87113.0,0.19351702]
[1742899083999,0.1844583,87114.0,87113.0,0.42351702]
[1742899084694,0.1844583,87114.0,87113.0,0.44925766]
[1742899084993,0.1844583,87114.0,87113.0,0.49533583]
[1742899085387,0.1844583,87114.0,87113.0,0.26533583]
[1742899085587,0.1844583,87114.0,87113.0,0.49533583]
[1742899085788,0.1844583,87114.0,87113.0,0.51065766]
[1742899085992,0.1844583,87114.0,87113.0,0.4948867]
[1742899086191,0.1844583,87114.0,87113.0,0.52049983]
[1742899086392,0.1844583,87114.0,87113.0,0.25049983]
[1742899086598,0.1844583,87114.0,87113.0,0.50049983]
[1742899087487,0.1844583,87114.0,87113.0,0.25049983]
[1742899087687,0.1844583,87114.0,87113.0,0.50049983]
[1742899088086,0.1844583,87114.0,87113.0,0.53049983]
[1742899088695,0.1844583,87114.0,87113.0,0.5048867]
[1742899088996,0.1844583,87114.0,87113.0,0.50490638]
[1742899090297,0.1844583,87114.0,87113.0,0.50490552]
[1742899090791,0.1844583,87114.0,87113.0,0.51490552]
[1742899093697,0.1844583,87114.0,87113.0,0.75490552]
[1742899094002,0.1844583,87114.0,87113.0,0.51490552]
[1742899094203,0.1844583,87114.0,87113.0,0.78490552]
[1742899094499,0.1844583,87114.0,87113.0,0.51490552]
[1742899095293,0.1844583,87114.0,87113.0,0.22490552]
[1742899095493,0.1844583,87114.0,87113.0,0.47490552]
[1742899095692,0.1844583,87114.0,87113.0,0.474851]
[1742899096588,0.1844583,87114.0,87113.0,0.443451]
[1742899096789,0.1844583,87114.0,87113.0,0.673451]
[1742899097202,0.1844583,87114.0,87113.0,0.443451]
[1742899098399,0.1844583,87114.0,87113.0,0.193451]
[1742899098599,0.1844583,87114.0,87113.0,0.453451]
[1742899099008,0.1844583,87114.0,87113.0,0.463451]
[1742899099713,0.1844583,87114.0,87113.0,0.743451]
[1742899100107,0.1844583,87114.0,87113.0,0.463451]
[1742899100610,0.1844583,87114.0,87113.0,0.7033503]
[1742899100813,0.1844583,87114.0,87113.0,0.7233503]
[1742899101498,0.1844583,87114.0,87113.0,0.74876878]
[1742899102204,0.1844583,87114.0,87113.0,0.75876878]
[1742899102513,0.1844583,87114.0,87113.0,0.74876878]
[1742899102901,0.1844583,87114.0,87113.0,0.48876878]
[1742899103215,0.1844583,87114.0,87113.0,0.7333503]
[1742899103510,0.00568,87114.0,87113.0,0.7174785]
[1742899103712,0.00568,87114.0,87113.0,1.10379246]
[1742899103899,0.005,87114.0,87113.0,1.11973868]
[1742899104510,0.005,87114.0,87113.0,1.09422472]
[1742899104708,0.005,87114.0,87113.0,1.0782785]
[1742899104906,0.005,87114.0,87113.0,1.11973223]
[1742899105804,0.005,87114.0,87113.0,1.0782785]
[1742899106214,0.005,87114.0,87113.0,1.11993872]
[1742899107403,0.005,87114.0,87113.0,1.11988188]
[1742899109415,0.005,87114.0,87113.0,1.0782785]
[1742899109617,0.005,87114.0,87113.0,1.11987709]
[1742899111214,0.005,87114.0,87113.0,1.09427796]
[1742899111722,0.005,87114.0,87113.0,1.09426933]
[1742899114910,0.005,87114.0,87113.0,1.11982844]
[1742899115112,0.005,87114.0,87113.0,1.09426933]
[1742899116926,0.005,87114.0,87113.0,2.59426933]
[1742899117623,0.068,87114.0,87113.0,2.59423963]
[1742899118829,0.0004,87128.0,87118.0,0.057386]
[1742899119016,0.0004,87128.0,87127.0,0.4755612]
[1742899119323,0.0004,87128.0,87127.0,1.08492233]
[1742899120126,0.0302,87134.0,87133.0,0.1147533]
[1742899120427,0.0302,87134.0,87133.0,0.74191443]
[1742899120627,0.0302,87134.0,87133.0,0.80471443]
[1742899120830,0.0302,87134.0,87133.0,0.81618743]
[1742899121822,0.0302,87134.0,87133.0,0.81604542]
[1742899122420,0.0332,87134.0,87133.0,0.81604542]
[1742899122723,0.0352,87134.0,87133.0,0.81604542]
[1742899123720,0.0352,87134.0,87133.0,0.8002263]
[1742899123921,0.0352,87134.0,87133.0,0.80892406]
[1742899124223,0.0352,87134.0,87133.0,0.82475509]
[1742899124428,0.0352,87134.0,87133.0,0.80892406]
[1742899126324,0.0352,87134.0,87133.0,0.8247497]
[1742899133225,0.0352,87134.0,87133.0,0.85008757]
[1742899134430,0.0352,87134.0,87133.0,0.8247497]
[1742899135228,0.0352,87134.0,87133.0,2.3247497]
[1742899135429,0.1499519,87134.0,87133.0,0.5365964]
[1742899135731,0.15055191,87134.0,87133.0,0.26077076]
[1742899136032,0.21115191,87134.0,87133.0,0.26077076]
[1742899136234,0.21115191,87134.0,87133.0,0.02077076]
[1742899136425,0.1721431,87129.0,87128.0,0.1721346]
[1742899136621,0.1730231,87129.0,87128.0,0.4227346]
[1742899136821,0.1730231,87129.0,87128.0,0.1727346]
[1742899137227,0.0582606,87129.0,87128.0,0.4027346]
[1742899137631,0.0592606,87129.0,87128.0,0.4027346]
[1742899138626,0.4200606,87129.0,87128.0,0.00934528]
[1742899138827,0.4220606,87129.0,87128.0,0.00874528]
[1742899139023,0.1721431,87128.0,87127.0,0.0573805]
[1742899139218,0.1729431,87128.0,87127.0,0.0580205]
[1742899139431,0.2348431,87128.0,87127.0,0.0580205]
[1742899139733,0.2348431,87128.0,87127.0,0.1154012]
[1742899140222,0.2358431,87128.0,87127.0,0.12610269]
[1742899140418,0.2368431,87128.0,87127.0,0.12670269]
[1742899141427,0.2368431,87128.0,87127.0,0.38670269]
[1742899141633,0.2368431,87128.0,87127.0,0.12670269]
[1742899141933,0.2378431,87128.0,87127.0,0.36670269]
[1742899142133,0.2378431,87128.0,87127.0,0.13538821]
[1742899142325,0.2378431,87128.0,87127.0,0.36538821]
[1742899144031,0.2378431,87128.0,87127.0,0.13538821]
[1742899149229,0.2378431,87128.0,87127.0,0.12404672]
[1742899149531,0.2378431,87128.0,87127.0,0.12344672]
[1742899150231,0.2378431,87128.0,87127.0,0.00868552]
[1742899150438,0.2378431,87128.0,87127.0,0.1147612]
[1742899150639,0.2378431,87128.0,87127.0,0.1154012]
[1742899150933,0.2378431,87128.0,87127.0,0.3754012]
[1742899151428,0.2378431,87128.0,87127.0,0.1154012]
[1742899151631,0.2378431,87128.0,87127.0,0.4040273]
[1742899152033,0.2378431,87128.0,87127.0,0.3540273]
[1742899152729,0.2378431,87128.0,87127.0,0.3940273]
[1742899153032,0.2378431,87128.0,87127.0,0.1240273]
[1742899153234,0.2378431,87128.0,87127.0,0.3640273]
[1742899153736,0.2378431,87128.0,87127.0,0.1240273]
[1742899156938,0.2378431,87128.0,87127.0,0.0092661]
[1742899157128,0.2378431,87128.0,87127.0,0.1233873]
[1742899157336,0.2378431,87128.0,87127.0,0.1239873]
[1742899157535,0.2378431,87128.0,87127.0,0.0092261]
[1742899157734,0.2378431,87128.0,87127.0,0.0086261]
[1742899157937,0.1721431,87127.0,87126.0,0.1147614]
[1742899158139,0.1729431,87127.0,87126.0,0.1153614]
[1742899158334,0.2390431,87127.0,87126.0,0.1153614]
[1742899158539,0.2390431,87127.0,87126.0,0.3653614]
[1742899159250,0.2390431,87127.0,87126.0,0.4162614]
[1742899159740,0.2410431,87127.0,87126.0,0.4162614]
[1742899161343,0.2410431,87127.0,87126.0,0.4465614]
[1742899161640,0.2410431,87127.0,87126.0,0.45529515]
[1742899161938,0.2410431,87127.0,87126.0,0.46995778]
[1742899162135,0.2410431,87127.0,87126.0,0.45995778]
[1742899163034,0.2400431,87127.0,87126.0,0.45995778]